fUSD/lending_fUSD_20240616
["ID","MTS","AMOUNT","RATE_DAILY","PERIOD"]
[329608377,1718500341057,-500.0,0.00022739,3]
[329608378,1718500341068,-500.0,0.00022739,3]
[329608379,1718500341098,-500.0,0.00022739,3]
[329608380,1718500341109,-500.0,0.00022739,3]
[329608381,1718500341131,-500.0,0.00022739,3]
[329608382,1718500341142,-500.0,0.00022739,3]
[329608383,1718500341168,-500.0,0.00022739,3]
[329608384,1718500341184,-500.0,0.00022739,3]
[329608385,1718500341200,-748.08,0.00022739,3]
[329608386,1718500341214,-500.0,0.00022739,3]
[329608387,1718500341229,-525.39266866,0.00022739,3]
[329608388,1718500341249,-500.0,0.00022739,3]
[329608389,1718500341261,-500.0,0.00022739,3]
[329608390,1718500341275,-500.0,0.00022739,3]
[329608391,1718500341290,-420.21,0.00022739,3]
[329608392,1718500341302,-506.31615053,0.00022739,3]
[329608393,1718500341323,-500.0,0.00022739,3]
[329608394,1718500341340,-500.0,0.00022739,3]
[329608395,1718500341360,-500.0,0.00022739,3]
[329608396,1718500341377,-745.21,0.00022739,3]
[329608397,1718500341388,-500.0,0.00022739,3]
[329608398,1718500341408,-500.0,0.00022739,3]
[329608399,1718500341421,-519.33,0.00022739,3]
[329608400,1718500341437,-500.0,0.00022739,3]
[329608401,1718500341448,-500.0,0.00022739,3]
[329608402,1718500341458,-500.0,0.00022739,3]
[329608403,1718500341470,-581.47,0.00022739,3]
[329608404,1718500341483,-500.0,0.00022739,3]
[329608405,1718500341514,-500.0,0.00022739,3]
[329608406,1718500341530,-848.35,0.00022739,3]
[329608407,1718500341550,-500.0,0.00022739,3]
[329608408,1718500341569,-520.22,0.00022739,3]
[329608409,1718500341589,-500.0,0.00022739,3]
[329608410,1718500341611,-500.0,0.00022739,3]
[329608411,1718500341622,-737.67,0.00022739,3]
[329608412,1718500341634,-500.0,0.00022739,3]
[329608413,1718500341644,-500.0,0.00022739,3]
[329608414,1718500341655,-516.47734258,0.00022739,3]
[329608415,1718500341669,-500.0,0.00022739,3]
[329608416,1718500341685,-500.0,0.00022739,3]
[329608417,1718500341712,-500.0,0.00022739,3]
[329608418,1718500341737,-523.77221928,0.00022739,3]
[329608419,1718500341749,-500.0,0.00022739,3]
[329608420,1718500341760,-500.0,0.00022739,3]
[329608421,1718500341773,-512.95865268,0.00022739,3]
[329608422,1718500341792,-500.0,0.00022739,3]
[329608423,1718500341805,-500.0,0.00022739,3]
[329608424,1718500341817,-500.0,0.00022739,3]
[329608425,1718500341829,-500.0,0.00022739,3]
[329608426,1718500341840,-500.0,0.00022739,3]
[329608427,1718500341851,-500.0,0.00022739,3]
[329608428,1718500341862,-500.0,0.00022739,3]
[329608429,1718500341875,-500.0,0.00022739,3]
[329608430,1718500341891,-1158.7,0.00022739,3]
[329608431,1718500341904,-500.0,0.00022739,3]
[329608432,1718500341925,-766.94,0.00022739,3]
[329608433,1718500341946,-500.0,0.00022739,3]
[329608434,1718500341961,-500.0,0.00022739,3]
[329608435,1718500341973,-500.0,0.00022739,3]
[329608436,1718500341986,-500.0,0.00022739,3]
[329608437,1718500341999,-529.46,0.00022739,3]
[329608438,1718500342010,-500.0,0.00022739,3]
[329608439,1718500342021,-500.0,0.00022739,3]
[329608440,1718500342033,-500.0,0.00022739,3]
[329608441,1718500342045,-500.0,0.00022739,3]
[329608442,1718500342057,-500.0,0.00022739,3]
[329608443,1718500342068,-500.0,0.00022739,3]
[329608444,1718500342079,-500.0,0.00022739,3]
[329608445,1718500342090,-500.0,0.00022739,3]
[329608446,1718500342101,-500.0,0.00022739,3]
[329608447,1718500342112,-500.0,0.00022739,3]
[329608448,1718500342123,-500.0,0.00022739,3]
[329608449,1718500342134,-500.0,0.00022739,3]
[329608450,1718500342145,-500.0,0.00022739,3]
[329608451,1718500342180,-500.0,0.00022739,3]
[329608452,1718500342191,-500.0,0.00022739,3]
[329608453,1718500342202,-595.22,0.00022739,3]
[329608454,1718500342215,-500.0,0.00022739,2]
[329608455,1718500342225,-508.14309392,0.00022739,3]
[329608456,1718500342236,-500.0,0.00022739,3]
[329608457,1718500342249,-500.0,0.00022739,3]
[329608458,1718500342260,-500.0,0.00022739,3]
[329608459,1718500342271,-500.0,0.00022739,3]
[329608460,1718500342292,-754.89,0.00022739,3]
[329608461,1718500342306,-533.72367728,0.00022739,3]
[329608462,1718500342317,-500.0,0.00022739,3]
[329608463,1718500342330,-500.0,0.00022739,3]
[329608464,1718500342357,-503.59062058,0.00022739,3]
[329608465,1718500342369,-641.4,0.00022739,3]
[329608466,1718500342381,-500.0,0.00022739,3]
[329608467,1718500342393,-500.0,0.00022739,3]
[329608468,1718500342405,-500.0,0.00022739,3]
[329608469,1718500342416,-500.0,0.00022739,3]
[329608470,1718500342427,-500.0,0.00022739,3]
[329608471,1718500342438,-500.0,0.00022739,3]
[329608472,1718500342450,-500.0,0.00022739,3]
[329608473,1718500342462,-1168.77,0.00022739,3]
[329608474,1718500342473,-500.0,0.00022739,3]
[329608475,1718500342490,-311.16681187,0.00022739,3]
[329608476,1718500342507,-667.73,0.00022739,3]
[329608477,1718500342518,-500.0,0.00022739,3]
[329608478,1718500342531,-500.0,0.00022739,3]
[329608479,1718500342543,-500.0,0.00022739,3]
[329608480,1718500342555,-500.0,0.00022739,3]
[329608481,1718500342568,-500.0,0.00022739,3]
[329608482,1718500342580,-500.0,0.00022739,3]
[329608483,1718500342591,-1255.22,0.00022739,3]
[329608484,1718500342612,-500.0,0.00022739,3]
[329608485,1718500342623,-500.0,0.00022739,3]
[329608486,1718500342636,-628.41,0.00022739,3]
[329608487,1718500342648,-500.0,0.00022739,3]
[329608488,1718500342661,-500.0,0.00022739,3]
[329608489,1718500342673,-500.0,0.00022739,3]
[329608490,1718500342685,-500.0,0.00022739,3]
[329608491,1718500342696,-528.22134451,0.00022739,3]
[329608492,1718500342709,-1382.46,0.00022739,3]
[329608493,1718500342726,-500.0,0.00022739,3]
[329608494,1718500342740,-500.0,0.00022739,3]
[329608495,1718500342754,-500.0,0.00022739,3]
[329608496,1718500342789,-500.0,0.00022739,3]
[329608497,1718500342823,-500.0,0.00022739,3]
[329608498,1718500342846,-500.0,0.00022739,3]
[329608499,1718500342873,-2375.0,0.00022739,3]
[329608500,1718500342895,-590.33882083,0.00022739,3]
[329608501,1718500342906,-206.27735734,0.00022739,3]
[329608502,1718500342919,-500.0,0.00022739,3]
[329608503,1718500342932,-556.03351774,0.00022739,3]
[329608504,1718500342944,-500.0,0.00022739,3]
[329608505,1718500342957,-500.0,0.00022739,3]
[329608506,1718500342969,-500.0,0.00022739,3]
[329608507,1718500342980,-500.0,0.00022739,3]
[329608508,1718500343005,-500.0,0.00022739,3]
[329608509,1718500343033,-500.0,0.00022739,3]
[329608510,1718500343045,-479.38142952,0.00022739,3]
[329608511,1718500343055,-500.0,0.00022739,3]
[329608512,1718500343066,-500.0,0.00022739,3]
[329608513,1718500343089,-500.0,0.00022739,3]
[329608514,1718500343106,-500.0,0.00022739,3]
[329608515,1718500343119,-500.0,0.00022739,3]
[329608516,1718500343130,-500.0,0.00022739,3]
[329608517,1718500343142,-500.0,0.00022739,3]
[329608518,1718500343153,-500.0,0.00022739,3]
[329608519,1718500343164,-500.0,0.00022739,3]
[329608520,1718500343179,-500.0,0.00022739,3]
[329608521,1718500343191,-500.0,0.00022739,3]
[329608522,1718500343206,-822.35,0.00022739,3]
[329608523,1718500343218,-591.83,0.00022739,3]
[329608524,1718500343244,-500.0,0.00022739,3]
[329608525,1718500343256,-500.0,0.00022739,2]
[329608526,1718500343270,-500.0,0.00022739,3]
[329608527,1718500343292,-500.0,0.00022739,3]
[329608528,1718500343303,-500.0,0.00022739,3]
[329608529,1718500343338,-500.0,0.00022739,3]
[329608530,1718500343353,-500.0,0.00022739,3]
[329608531,1718500343384,-500.0,0.00022739,3]
[329608532,1718500343398,-500.0,0.00022739,3]
[329608533,1718500343417,-500.0,0.00022739,3]
[329608534,1718500343435,-500.0,0.00022739,3]
[329608535,1718500343452,-504.52142394,0.00022739,3]
[329608536,1718500343468,-500.0,0.00022739,3]
[329608537,1718500343481,-500.0,0.00022739,3]
[329608538,1718500343498,-500.0,0.00022739,3]
[329608539,1718500343544,-600.23301049,0.00022739,3]
[329608540,1718500343572,-748.14,0.00022739,3]
[329608541,1718500343593,-655.15,0.00022739,3]
[329608542,1718500343612,-500.0,0.00022739,3]
[329608543,1718500343643,-500.0,0.00022739,3]
[329608544,1718500343659,-500.0,0.00022739,3]
[329608545,1718500343690,-500.0,0.00022739,3]
[329608546,1718500343710,-179.22196286,0.00022739,3]
[329608547,1718500343733,-500.0,0.00022739,3]
[329608548,1718500343753,-500.0,0.00022739,3]
[329608549,1718500343773,-500.0,0.00022739,3]
[329608550,1718500343795,-500.0,0.00022739,3]
[329608551,1718500343812,-258.47060296,0.00022739,3]
[329608552,1718500343834,-500.0,0.00022739,3]
[329608553,1718500343858,-500.0,0.00022739,3]
[329608554,1718500343879,-760.7,0.00022739,3]
[329608555,1718500343894,-500.0,0.00022739,3]
[329608556,1718500343911,-500.0,0.00022739,3]
[329608557,1718500343931,-1169.16,0.00022739,3]
[329608558,1718500343948,-500.0,0.00022739,3]
[329608559,1718500343968,-500.0,0.00022739,3]
[329608560,1718500343987,-500.0,0.00022739,3]
[329608561,1718500344009,-500.0,0.00022739,3]
[329608562,1718500344030,-500.0,0.00022739,3]
[329608563,1718500344056,-720.96,0.00022739,3]
[329608564,1718500344078,-500.0,0.00022739,3]
[329608565,1718500344103,-500.0,0.00022739,3]
[329608566,1718500344125,-500.0,0.00022739,3]
[329608567,1718500344142,-231.69,0.00022739,3]
[329608568,1718500344161,-500.0,0.00022739,3]
[329608569,1718500344185,-500.0,0.00022739,3]
[329608570,1718500344207,-500.0,0.00022739,3]
[329608571,1718500344251,-500.0,0.00022739,3]
[329608572,1718500344267,-500.0,0.00022739,3]
[329608573,1718500344285,-500.0,0.00022739,3]
[329608574,1718500344324,-3731.93,0.00022739,3]
[329608575,1718500344360,-500.0,0.00022739,3]
[329608576,1718500344383,-500.0,0.00022739,3]
[329608577,1718500344397,-500.0,0.00022739,3]
[329608578,1718500344413,-500.0,0.00022739,3]
[329608579,1718500344429,-859.57,0.00022739,3]
[329608580,1718500344465,-500.0,0.00022739,3]
[329608581,1718500344491,-500.0,0.00022739,3]
[329608582,1718500344507,-500.0,0.00022739,3]
[329608583,1718500344523,-500.0,0.00022739,3]
[329608584,1718500344561,-500.0,0.00022739,3]
[329608585,1718500344576,-500.0,0.00022739,3]
[329608586,1718500344614,-500.0,0.00022739,3]
[329608587,1718500344640,-1002.64,0.00022739,3]
[329608588,1718500344662,-500.0,0.00022739,3]
[329608589,1718500344686,-500.0,0.00022739,3]
[329608590,1718500344702,-500.0,0.00022739,3]
[329608591,1718500344744,-500.0,0.00022739,3]
[329608592,1718500344760,-500.0,0.00022739,3]
[329608593,1718500344794,-500.0,0.00022739,3]
[329608594,1718500344814,-500.0,0.00022739,3]
[329608595,1718500344836,-602.36,0.00022739,3]
[329608596,1718500344856,-500.0,0.00022739,3]
[329608597,1718500344876,-505.85379212,0.00022739,3]
[329608598,1718500344890,-500.0,0.00022739,3]
[329608599,1718500344911,-501.26654255,0.00022739,3]
[329608600,1718500344925,-500.0,0.00022739,3]
[329608601,1718500344938,-500.0,0.00022739,3]
[329608602,1718500344953,-21145.18,0.00022739,3]
[329608603,1718500344981,-500.0,0.00022739,3]
[329608604,1718500345002,-500.0,0.00022739,3]
[329608605,1718500345019,-498.36885813,0.00022739,3]
[329608606,1718500345040,-581.24441602,0.00022739,3]
[329608607,1718500345056,-500.0,0.00022739,3]
[329608608,1718500345074,-500.0,0.00022739,3]
[329608609,1718500345091,-597.99631304,0.00022739,3]
[329608610,1718500345110,-500.0,0.00022739,3]
[329608611,1718500345124,-500.0,0.00022739,3]
[329608612,1718500345151,-518.94,0.00022739,3]
[329608613,1718500345168,-712.34,0.00022739,3]
[329608614,1718500345184,-523.88951601,0.00022739,3]
[329608615,1718500345214,-500.0,0.00022739,3]
[329608616,1718500345255,-500.0,0.00022739,3]
[329608617,1718500345273,-500.0,0.00022739,3]
[329608618,1718500345293,-500.0,0.00022739,3]
[329608619,1718500345310,-500.0,0.00022739,3]
[329608620,1718500345336,-500.0,0.00022739,3]
[329608621,1718500345355,-2102.22,0.00022739,3]
[329608622,1718500345390,-508.31,0.00022739,3]
[329608623,1718500345412,-500.0,0.00022739,3]
[329608624,1718500345426,-500.0,0.00022739,3]
[329608625,1718500345440,-500.0,0.00022739,3]
[329608626,1718500345456,-500.0,0.00022739,3]
[329608627,1718500345470,-515.68468899,0.00022739,3]
[329608628,1718500345497,-500.0,0.00022739,3]
[329608629,1718500345544,-500.0,0.00022739,3]
[329608630,1718500345567,-627.6,0.00022739,3]
[329608631,1718500345582,-500.0,0.00022739,3]
[329608632,1718500345597,-971.94,0.00022739,3]
[329608633,1718500345624,-741.33,0.00022739,3]
[329608634,1718500345674,-500.0,0.00022739,3]
[329608635,1718500345720,-500.0,0.00022739,3]
[329608636,1718500345734,-500.0,0.00022739,3]
[329608637,1718500345753,-530.48322826,0.00022739,3]
[329608638,1718500345769,-500.0,0.00022739,3]
[329608639,1718500345794,-1135.52,0.00022739,3]
[329608640,1718500345829,-500.0,0.00022739,3]
[329608641,1718500345850,-500.0,0.00022739,3]
[329608642,1718500345863,-500.0,0.00022739,3]
[329608643,1718500345881,-689.57,0.00022739,3]
[329608644,1718500345900,-500.0,0.00022739,3]
[329608645,1718500345913,-500.0,0.00022739,3]
[329608646,1718500345926,-997.55,0.00022739,3]
[329608647,1718500345955,-500.0,0.00022739,3]
[329608648,1718500345973,-500.0,0.00022739,3]
[329608649,1718500345988,-443.41468964,0.00022739,3]
[329608650,1718500346003,-500.0,0.00022739,3]
[329608651,1718500346030,-500.0,0.00022739,3]
[329608652,1718500346048,-500.0,0.00022739,3]
[329608653,1718500346076,-515.10737876,0.00022739,3]
[329608654,1718500346093,-500.0,0.00022739,3]
[329608655,1718500346116,-1192.37,0.00022739,3]
[329608656,1718500346138,-500.0,0.00022739,3]
[329608657,1718500346151,-500.0,0.00022739,3]
[329608658,1718500346165,-500.0,0.00022739,3]
[329608659,1718500346194,-500.0,0.00022739,3]
[329608660,1718500346208,-500.0,0.00022739,3]
[329608661,1718500346223,-500.0,0.00022739,3]
[329608662,1718500346237,-506.75193382,0.00022739,3]
[329608663,1718500346292,-500.0,0.00022739,3]
[329608664,1718500346306,-517.9,0.00022739,3]
[329608665,1718500346319,-1380.29,0.00022739,3]
[329608666,1718500346339,-727.67,0.00022739,3]
[329608667,1718500346355,-500.0,0.00022739,3]
[329608668,1718500346396,-597.21009389,0.00022739,3]
[329608669,1718500346417,-500.0,0.00022739,3]
[329608670,1718500346436,-501.53874541,0.00022739,3]
[329608671,1718500346460,-500.0,0.00022739,3]
[329608672,1718500346474,-760.08,0.00022739,3]
[329608673,1718500346487,-500.0,0.00022739,3]
[329608674,1718500346513,-500.0,0.00022739,3]
[329608675,1718500346533,-670.39,0.00022739,3]
[329608676,1718500346561,-500.0,0.00022739,3]
[329608677,1718500346576,-500.0,0.00022739,3]
[329608678,1718500346596,-978.69,0.00022739,3]
[329608679,1718500346622,-500.0,0.00022739,3]
[329608680,1718500346635,-1450.19,0.00022739,3]
[329608681,1718500346653,-3963.04,0.00022739,3]
[329608682,1718500346675,-500.0,0.00022739,3]
[329608683,1718500346693,-500.0,0.00022739,3]
[329608684,1718500346709,-500.0,0.00022739,3]
[329608685,1718500346726,-500.0,0.00022739,3]
[329608686,1718500346739,-500.0,0.00022739,3]
[329608687,1718500346757,-500.0,0.00022739,3]
[329608688,1718500346771,-500.0,0.00022739,3]
[329608689,1718500346788,-520.79,0.00022739,3]
[329608690,1718500346803,-1580.68,0.00022739,3]
[329608691,1718500346820,-1369.1,0.00022739,3]
[329608692,1718500346841,-896.3,0.00022739,3]
[329608693,1718500346855,-500.0,0.00022739,3]
[329608694,1718500346897,-500.0,0.00022739,3]
[329608695,1718500346913,-683.47,0.00022739,3]
[329608696,1718500346925,-500.0,0.00022739,3]
[329608697,1718500346939,-500.0,0.00022739,3]
[329608698,1718500346954,-792.53,0.00022739,3]
[329608699,1718500346973,-1032.51,0.00022739,3]
[329608700,1718500346987,-1379.29,0.00022739,3]
[329608701,1718500347010,-500.0,0.00022739,3]
[329608702,1718500347023,-9030.29,0.00022739,3]
[329608703,1718500347037,-554.09,0.00022739,3]
[329608704,1718500347062,-504.46248576,0.00022739,3]
[329608705,1718500347075,-500.0,0.00022739,3]
[329608706,1718500347092,-500.0,0.00022739,3]
[329608707,1718500347107,-500.0,0.00022739,3]
[329608708,1718500347120,-500.0,0.00022739,3]
[329608709,1718500347134,-500.0,0.00022739,3]
[329608710,1718500347148,-3085.97,0.00022739,3]
[329608711,1718500347163,-500.0,0.00022739,3]
[329608712,1718500347195,-656.05,0.00022739,3]
[329608713,1718500347224,-500.0,0.00022739,3]
[329608714,1718500347242,-500.0,0.00022739,3]
[329608715,1718500347280,-2510.66,0.00022739,3]
[329608716,1718500347296,-500.0,0.00022739,3]
[329608717,1718500347311,-696.32,0.00022739,3]
[329608718,1718500347342,-500.0,0.00022739,3]
[329608719,1718500347360,-500.0,0.00022739,3]
[329608720,1718500347389,-507.70836816,0.00022739,3]
[329608721,1718500347405,-1590.97,0.00022739,3]
[329608722,1718500347430,-1276.21,0.00022739,3]
[329608723,1718500347445,-500.0,0.00022739,3]
[329608724,1718500347460,-500.0,0.00022739,3]
[329608725,1718500347475,-500.0,0.00022739,3]
[329608726,1718500347489,-500.0,0.00022739,3]
[329608727,1718500347507,-500.0,0.00022739,3]
[329608728,1718500347534,-500.0,0.00022739,3]
[329608729,1718500347565,-530.37,0.00022739,3]
[329608730,1718500347584,-500.0,0.00022739,3]
[329608731,1718500347601,-500.0,0.00022739,3]
[329608732,1718500347617,-897.84,0.00022739,3]
[329608733,1718500347629,-500.0,0.00022739,3]
[329608734,1718500347642,-500.0,0.00022739,3]
[329608735,1718500347657,-519.61,0.00022739,3]
[329608736,1718500347681,-500.0,0.00022739,3]
[329608737,1718500347712,-500.0,0.00022739,3]
[329608738,1718500347732,-500.0,0.00022739,3]
[329608739,1718500347763,-1380.6,0.00022739,3]
[329608740,1718500347793,-500.0,0.00022739,3]
[329608741,1718500347807,-500.0,0.00022739,3]
[329608742,1718500347833,-500.0,0.00022739,3]
[329608743,1718500347874,-1037.66,0.00022739,3]
[329608744,1718500347895,-500.0,0.00022739,3]
[329608745,1718500347918,-500.0,0.00022739,3]
[329608746,1718500347941,-500.0,0.00022739,3]
[329608747,1718500347965,-500.0,0.00022739,3]
[329608748,1718500347987,-675.28,0.00022739,3]
[329608749,1718500348007,-500.0,0.00022739,3]
[329608750,1718500348051,-500.0,0.00022739,3]
[329608751,1718500348073,-500.0,0.00022739,3]
[329608752,1718500348088,-922.21,0.00022739,3]
[329608753,1718500348104,-500.0,0.00022739,3]
[329608754,1718500348123,-500.0,0.00022739,3]
[329608755,1718500348137,-500.0,0.00022739,3]
[329608756,1718500348150,-500.0,0.00022739,3]
[329608757,1718500348166,-500.0,0.00022739,3]
[329608758,1718500348196,-10328.79,0.00022739,3]
[329608759,1718500348210,-753.03,0.00022739,3]
[329608760,1718500348226,-975.28,0.00022739,3]
[329608761,1718500348238,-516.01691382,0.00022739,3]
[329608762,1718500348259,-1000.02,0.00022739,3]
[329608763,1718500348281,-500.0,0.00022739,3]
[329608764,1718500348295,-507.11231658,0.00022739,3]
[329608765,1718500348311,-500.0,0.00022739,3]
[329608766,1718500348326,-1668.64,0.00022739,3]
[329608767,1718500348343,-500.0,0.00022739,3]
[329608768,1718500348362,-500.0,0.00022739,3]
[329608769,1718500348382,-500.0,0.00022739,3]
[329608770,1718500348398,-500.0,0.00022739,3]
[329608771,1718500348416,-1074.3,0.00022739,3]
[329608772,1718500348433,-1014.22,0.00022739,3]
[329608773,1718500348446,-500.0,0.00022739,3]
[329608774,1718500348468,-500.0,0.00022739,3]
[329608775,1718500348513,-550.41,0.00022739,3]
[329608776,1718500348527,-500.0,0.00022739,3]
[329608777,1718500348960,-500.0,0.00022739,3]
[329608778,1718500348982,-668.48,0.00022739,3]
[329608779,1718500348999,-500.0,0.00022739,3]
[329608780,1718500349028,-500.0,0.00022739,3]
[329608781,1718500349048,-530.87408027,0.00022739,3]
[329608782,1718500349060,-500.0,0.00022739,3]
[329608783,1718500349077,-1618.5,0.00022739,3]
[329608784,1718500349107,-500.0,0.00022739,3]
[329608785,1718500349148,-500.0,0.00022739,3]
[329608786,1718500349161,-1463.48,0.00022739,3]
[329608787,1718500349175,-500.0,0.00022739,3]
[329608788,1718500349190,-5409.28156273,0.00022739,3]
[329608789,1718500356514,-200.0,0.00019338,2]
[329608790,1718500356526,-537.02405523,0.00019338,2]
[329608791,1718500356550,-500.0,0.00019339,2]
[329608792,1718500356567,-1451.079785,0.00019351,2]
[329608793,1718500356735,-1103.569346,0.00019351,2]
[329608794,1718500356749,-1335.57189952,0.00019351,2]
[329608836,1718501433499,-334.65,0.00016298,2]
[329608837,1718501439265,-599.45432527,0.00016298,2]
[329608843,1718501452976,-155.0,0.00016297,2]
[329608844,1718501452995,-1575.3953812,0.00016298,2]
[329608845,1718501453017,-300.0,0.00016299,2]
[329608846,1718501453033,-3840.192,0.000163,2]
[329608847,1718501453046,-1199.003,0.000163,2]
[329608848,1718501453059,-1580.633,0.000163,2]
[329608849,1718501453078,-30875.439,0.000163,2]
[329608850,1718501453093,-442.0,0.00016529,2]
[329608851,1718501453106,-2104.268,0.0001739,2]
[329608852,1718501453119,-420.0,0.00017814,2]
[329608853,1718501453135,-570.71,0.00017893,2]
[329608854,1718501453148,-300.0,0.00018855,2]
[329608855,1718501453159,-4720.69612382,0.0001888,2]
[329608856,1718501453172,-1175.653359,0.00018955,2]
[329608857,1718501453192,-162.091519,0.00018955,2]
[329608858,1718501453212,-1175.653359,0.00019192,2]
[329608859,1718501453223,-15306.16121503,0.00019351,2]
[329608861,1718501757317,243.6758365,0.000101,2]
[329608862,1718501823795,1364.6376142,0.000101,2]
[329608863,1718501836294,155.0,0.000101,2]
[329608864,1718501843138,716.65189986,0.000101,2]
[329608866,1718501852181,25281.6330304,0.000101,2]
[329608867,1718501852813,155.0,0.000101,2]
[329608869,1718501872328,200.05653186,0.000101,2]
[329608870,1718501957203,2555.21259535,7.575e-05,2]
[329608871,1718501973197,176.29023676,7.575e-05,2]
[329608881,1718502497508,1198.96833491,7.575e-05,2]
[329608882,1718502563027,-1457.75854401,0.000118,2]
[329608893,1718502639114,-300.0,0.00014899,2]
[329608894,1718502639142,-278.2667,0.000149,2]
[329608895,1718502639158,-241.69449445,0.000149,2]
[329608896,1718502639175,-255.3730066,0.000149,2]
[329608897,1718502639208,-1286.7139934,0.000149,2]
[329608898,1718502639246,-41.22547736,0.000149,2]
[329608899,1718502646501,-4783.51459039,0.000149,2]
[329608900,1718502646513,-322.0734385,0.000149,2]
[329608901,1718502646528,-150.0,0.00014986,2]
[329608902,1718502646552,-153.22,0.0001499,2]
[329608903,1718502646566,-153.22,0.0001499,2]
[329608904,1718502646591,-267.33984233,0.00014999,2]
[329608905,1718502646604,-1780267.66050694,0.00015,2]
[329608906,1718502646622,-2324.5961806,0.00015,2]
[329608907,1718502646641,-827.0,0.000155,2]
[329608908,1718502646653,-3724.0,0.000155,2]
[329608909,1718502646671,-4824.74006768,0.0001628,2]
[329608910,1718502646682,-420.0,0.00016308,2]
[329608911,1718502646702,-288.0,0.000164,2]
[329608912,1718502646716,-630.71,0.00016525,2]
[329608913,1718502646735,-360.115,0.00016835,2]
[329608914,1718502646757,-1273.901,0.00016835,2]
[329608915,1718502646773,-815.713,0.00016835,2]
[329608916,1718502646786,-466.355,0.00016835,2]
[329608917,1718502646820,-442.0,0.00016835,2]
[329608918,1718502646847,-2417.851,0.00016835,2]
[329608919,1718502646860,-223.85,0.00016835,2]
[329608920,1718502646875,-186.917,0.00016835,2]
[329608921,1718502646888,-241.69449441,0.00017314,2]
[329608922,1718502646909,-4824.74006768,0.00017659,2]
[329608923,1718502646930,-288.0,0.0001785,2]
[329608924,1718502646959,-587.0,0.0001785,2]
[329608925,1718502646974,-151.0,0.00017995,2]
[329608926,1718502646986,-303.54,0.00018412,2]
[329608927,1718502647007,-776.32,0.00018439,2]
[329608928,1718502647040,-150.0,0.00018456,2]
[329608929,1718502647052,-250.0,0.00018585,2]
[329608930,1718502647072,-185.14,0.00018633,2]
[329608931,1718502647100,-151.0,0.00018773,2]
[329608932,1718502647123,-630.71,0.00018789,2]
[329608933,1718502647134,-181.919667,0.00018955,2]
[329608934,1718502647146,-343.059552,0.00018955,2]
[329608935,1718502647180,-152.549588,0.00018955,2]
[329608936,1718502647207,-184.206161,0.00018955,2]
[329608937,1718502647233,-3242.142319,0.00018955,2]
[329608938,1718502647248,-1959.199718,0.00018955,2]
[329608939,1718502647271,-190.820786,0.00018955,2]
[329608940,1718502647301,-187.274551,0.00018955,2]
[329608941,1718502647321,-215.199623,0.00018955,2]
[329608942,1718502647334,-250.0,0.00019008,2]
[329608943,1718502647347,-4824.74006768,0.00019039,2]
[329608944,1718502647361,-1000.0,0.00019075,2]